fUST/lending_fUST_20250228
["ID","MTS","AMOUNT","RATE_DAILY","PERIOD"]
[354784827,1740691845928,-500.0,0.00049315,120]
[354784828,1740691845937,-500.0,0.00049315,120]
[354784829,1740691845946,-500.0,0.00049315,120]
[354784830,1740691845957,-500.0,0.00049315,30]
[354784831,1740691845966,-500.0,0.00049315,21]
[354784832,1740691845976,-500.0,0.00049315,120]
[354784833,1740691845985,-500.0,0.00049315,120]
[354784834,1740691845995,-1515.8,0.00049315,14]
[354784835,1740691846004,-500.0,0.00049315,120]
[354784837,1740691846014,-500.0,0.00049315,120]
[354784838,1740691846023,-500.0,0.00049315,120]
[354784839,1740691846032,-921.65,0.00049315,120]
[354784840,1740691846042,-500.0,0.00049315,120]
[354784841,1740691846051,-499.99,0.00049315,120]
[354784842,1740691846061,-500.0,0.00049315,120]
[354784843,1740691846070,-500.0,0.00049315,120]
[354784844,1740691846080,-500.0,0.00049315,120]
[354784845,1740691846089,-207.74160135,0.0004932,120]
[354784846,1740691846098,-207.74,0.0004932,120]
[354784847,1740691846108,-157.83135718,0.0004932,120]
[354784848,1740691846117,-157.83,0.0004932,120]
[354784850,1740691846126,-152.65883167,0.0004932,120]
[354784851,1740691846135,-152.65,0.0004932,120]
[354784852,1740691846145,-5557.81,0.000494,30]
[354784853,1740691846154,-2808.43,0.000494,30]
[354784854,1740691846163,-607.18,0.000494,30]
[354784855,1740691846172,-1384.21,0.000494,30]
[354784856,1740691846185,-500.0,0.00049573,7]
[354784857,1740691846195,-9295.06651546,0.00049589,7]
[354784858,1740691846204,-500.0,0.00049589,120]
[354784859,1740691846213,-500.0,0.00049589,120]
[354784860,1740691846223,-199.84,0.00049589,120]
[354784861,1740691846232,-500.0,0.00049589,120]
[354784862,1740691846242,-500.0,0.00049589,120]
[354784863,1740691846253,-500.0,0.00049589,120]
[354784864,1740691846263,-500.0,0.00049589,120]
[354784865,1740691846272,-500.0,0.00049589,120]
[354784866,1740691846282,-500.0,0.00049589,120]
[354784867,1740691846291,-293.25,0.00049589,120]
[354784868,1740691846300,-500.0,0.00049589,120]
[354784869,1740691846309,-311.36597773,0.00049589,120]
[354784870,1740691846319,-500.0,0.00049589,120]
[354784871,1740691846329,-500.0,0.00049589,120]
[354784872,1740691846339,-500.0,0.00049589,120]
[354784873,1740691846348,-500.0,0.00049589,120]
[354784874,1740691846357,-500.0,0.00049589,120]
[354784875,1740691846366,-500.0,0.00049589,120]
[354784876,1740691846375,-500.0,0.00049589,120]
[354784877,1740691846385,-500.0,0.00049589,120]
[354784878,1740691846394,-500.0,0.00049589,120]
[354784879,1740691846403,-500.0,0.00049589,120]
[354784880,1740691846412,-500.0,0.00049589,120]
[354784881,1740691846421,-500.0,0.00049589,120]
[354784882,1740691846434,-500.0,0.00049589,120]
[354784883,1740691846443,-500.0,0.00049589,120]
[354784884,1740691846452,-500.0,0.00049589,120]
[354784885,1740691846463,-500.0,0.00049589,120]
[354784886,1740691846472,-500.0,0.00049589,120]
[354784887,1740691846481,-500.0,0.00049589,120]
[354784888,1740691846490,-500.0,0.00049589,120]
[354784889,1740691846500,-500.0,0.00049589,120]
[354784890,1740691846509,-500.0,0.00049589,120]
[354784891,1740691846518,-500.0,0.00049589,120]
[354784892,1740691846527,-500.0,0.00049589,120]
[354784893,1740691846536,-500.0,0.00049589,120]
[354784894,1740691846546,-500.0,0.00049589,120]
[354784895,1740691846664,-500.0,0.00049589,120]
[354784896,1740691846674,-1906.52,0.00049589,120]
[354784897,1740691846687,-500.0,0.00049589,120]
[354784898,1740691846696,-459.73,0.00049589,120]
[354784899,1740691846706,-500.0,0.00049589,120]
[354784900,1740691846715,-500.0,0.00049589,120]
[354784901,1740691846724,-500.0,0.00049589,120]
[354784902,1740691846733,-500.0,0.00049589,120]
[354784903,1740691846743,-500.0,0.00049589,120]
[354784904,1740691846753,-500.0,0.00049589,120]
[354784905,1740691846762,-500.0,0.00049589,120]
[354784906,1740691846771,-500.0,0.00049589,120]
[354784907,1740691846780,-500.0,0.00049589,120]
[354784908,1740691846789,-500.0,0.00049589,120]
[354784909,1740691846799,-500.0,0.00049589,120]
[354784910,1740691846808,-2397.0,0.00049589,6]
[354784911,1740691846817,-500.0,0.00049589,120]
[354784912,1740691846826,-500.0,0.00049589,120]
[354784913,1740691846836,-500.0,0.00049589,120]
[354784914,1740691846845,-500.0,0.00049589,120]
[354784915,1740691846854,-500.0,0.00049589,120]
[354784916,1740691846863,-526.16,0.00049589,120]
[354784917,1740691846873,-500.0,0.00049589,120]
[354784918,1740691846883,-500.0,0.00049589,120]
[354784919,1740691846892,-500.0,0.00049589,120]
[354784920,1740691846901,-500.0,0.00049589,120]
[354784921,1740691846911,-500.0,0.00049589,120]
[354784922,1740691846920,-500.0,0.00049589,120]
[354784923,1740691846932,-500.0,0.00049589,120]
[354784924,1740691846942,-620.31,0.00049589,120]
[354784925,1740691846951,-500.0,0.00049589,120]
[354784926,1740691846960,-747.2,0.00049589,120]
[354784927,1740691846969,-1419.42,0.00049589,120]
[354784928,1740691846978,-1254.24,0.00049589,120]
[354784929,1740691846987,-500.0,0.00049589,120]
[354784930,1740691846996,-500.0,0.00049589,120]
[354784931,1740691847006,-500.0,0.00049589,120]
[354784932,1740691847015,-500.0,0.00049589,120]
[354784933,1740691847024,-500.0,0.00049589,120]
[354784934,1740691847034,-500.0,0.00049589,120]
[354784935,1740691847043,-500.0,0.00049589,120]
[354784936,1740691847052,-500.0,0.00049589,120]
[354784937,1740691847061,-500.0,0.00049589,120]
[354784938,1740691847070,-500.0,0.00049589,120]
[354784939,1740691847079,-500.0,0.00049589,120]
[354784940,1740691847088,-500.0,0.00049589,120]
[354784941,1740691847097,-960.32,0.00049589,120]
[354784942,1740691847107,-500.0,0.00049589,120]
[354784943,1740691847116,-500.0,0.00049589,120]
[354784944,1740691847125,-500.0,0.00049589,120]
[354784945,1740691847135,-500.0,0.00049589,120]
[354784946,1740691847144,-500.0,0.00049589,120]
[354784947,1740691847154,-1319.71,0.00049589,120]
[354784948,1740691847163,-500.0,0.00049589,120]
[354784949,1740691847173,-500.0,0.00049589,120]
[354784950,1740691847185,-602.34,0.00049589,120]
[354784951,1740691847195,-500.0,0.00049589,120]
[354784952,1740691847204,-8455.64,0.00049589,7]
[354784953,1740691847214,-500.0,0.00049589,120]
[354784954,1740691847223,-500.0,0.00049589,120]
[354784955,1740691847232,-611.94,0.00049589,120]
[354784956,1740691847243,-500.0,0.00049589,120]
[354784957,1740691847254,-1464.48,0.00049589,120]
[354784958,1740691847263,-500.0,0.00049589,120]
[354784959,1740691847273,-500.0,0.00049589,120]
[354784960,1740691847283,-1661.68,0.00049589,120]
[354784961,1740691847293,-500.0,0.00049589,120]
[354784962,1740691847302,-188.08,0.00049589,120]
[354784963,1740691847312,-500.0,0.00049589,120]
[354784964,1740691847321,-531.89,0.00049589,120]
[354784965,1740691847331,-500.0,0.00049589,120]
[354784966,1740691847341,-500.0,0.00049589,120]
[354784967,1740691847350,-500.0,0.00049589,120]
[354784968,1740691847360,-500.0,0.00049589,120]
[354784969,1740691847370,-500.0,0.00049589,120]
[354784970,1740691847379,-275.27,0.00049589,120]
[354784971,1740691847389,-500.0,0.00049589,120]
[354784972,1740691847398,-363.03,0.00049589,120]
[354784973,1740691847407,-500.0,0.00049589,120]
[354784974,1740691847417,-500.0,0.00049589,120]
[354784975,1740691847428,-500.0,0.00049589,120]
[354784976,1740691847438,-500.0,0.00049589,120]
[354784977,1740691847447,-500.0,0.00049589,30]
[354784978,1740691847456,-500.0,0.00049589,120]
[354784979,1740691847468,-500.0,0.00049589,120]
[354784980,1740691847478,-1515.8,0.00049589,14]
[354784981,1740691847488,-500.0,0.00049589,120]
[354784982,1740691847498,-921.65,0.00049589,120]
[354784983,1740691847507,-500.0,0.00049589,120]
[354784984,1740691847517,-500.0,0.00049589,120]
[354784985,1740691847527,-179.56903432,0.00049844,40]
[354784986,1740691847536,-500.0,0.00049863,120]
[354784987,1740691847546,-500.0,0.00049863,120]
[354784988,1740691847555,-500.0,0.00049863,120]
[354784989,1740691847563,-500.0,0.00049863,120]
[354784990,1740691847573,-500.0,0.00049863,120]
[354784991,1740691847582,-500.0,0.00049863,120]
[354784992,1740691847591,-188.13,0.00049863,120]
[354784993,1740691847600,-170.26,0.00049863,120]
[354784994,1740691847609,-500.0,0.00049863,120]
[354784995,1740691847618,-500.0,0.00049863,120]
[354784996,1740691847627,-500.0,0.00049863,120]
[354784997,1740691847635,-500.0,0.00049863,120]
[354784998,1740691847644,-500.0,0.00049863,120]
[354784999,1740691847653,-500.0,0.00049863,120]
[354785000,1740691847662,-500.0,0.00049863,120]
[354785001,1740691847671,-500.0,0.00049863,120]
[354785002,1740691847682,-500.0,0.00049863,120]
[354785003,1740691847691,-332.89674708,0.00049863,120]
[354785004,1740691847704,-285.48059419,0.00049863,120]
[354785005,1740691847714,-500.0,0.00049863,120]
[354785006,1740691847723,-500.0,0.00049863,120]
[354785007,1740691847732,-203.03396545,0.00049863,120]
[354785008,1740691847742,-500.0,0.00049863,120]
[354785009,1740691847751,-500.0,0.00049863,120]
[354785010,1740691847760,-500.0,0.00049863,120]
[354785011,1740691847769,-500.0,0.00049863,120]
[354785012,1740691847779,-1906.52,0.00049863,120]
[354785013,1740691847788,-500.0,0.00049863,120]
[354785014,1740691847797,-500.0,0.00049863,120]
[354785015,1740691847807,-500.0,0.00049863,120]
[354785016,1740691847816,-500.0,0.00049863,120]
[354785017,1740691847826,-500.0,0.00049863,120]
[354785018,1740691847838,-500.0,0.00049863,120]
[354785019,1740691847847,-2397.0,0.00049863,6]
[354785020,1740691847857,-500.0,0.00049863,120]
[354785021,1740691847866,-526.16,0.00049863,120]
[354785022,1740691847876,-500.0,0.00049863,120]
[354785023,1740691847885,-500.0,0.00049863,120]
[354785024,1740691847894,-500.0,0.00049863,120]
[354785025,1740691847903,-500.0,0.00049863,120]
[354785026,1740691847912,-747.2,0.00049863,120]
[354785027,1740691847921,-1419.42,0.00049863,120]
[354785028,1740691847931,-1254.24,0.00049863,120]
[354785029,1740691847940,-187.06,0.00049863,120]
[354785030,1740691847950,-500.0,0.00049863,120]
[354785031,1740691847959,-500.0,0.00049863,120]
[354785032,1740691847968,-500.0,0.00049863,120]
[354785033,1740691847977,-500.0,0.00049863,120]
[354785034,1740691847986,-500.0,0.00049863,120]
[354785035,1740691847995,-500.0,0.00049863,120]
[354785036,1740691848004,-500.0,0.00049863,120]
[354785037,1740691848013,-500.0,0.00049863,120]
[354785038,1740691848023,-500.0,0.00049863,120]
[354785039,1740691848032,-960.32,0.00049863,120]
[354785040,1740691848041,-500.0,0.00049863,120]
[354785041,1740691848050,-500.0,0.00049863,120]
[354785042,1740691848060,-500.0,0.00049863,120]
[354785043,1740691848069,-1319.71,0.00049863,120]
[354785044,1740691848079,-613.56,0.00049863,120]
[354785045,1740691848088,-500.0,0.00049863,120]
[354785046,1740691848098,-602.34,0.00049863,120]
[354785047,1740691848107,-530.04,0.00049863,120]
[354785048,1740691848117,-8455.64,0.00049863,7]
[354785049,1740691848126,-500.0,0.00049863,120]
[354785050,1740691848135,-1464.48,0.00049863,120]
[354785051,1740691848145,-500.0,0.00049863,120]
[354785052,1740691848154,-1661.68,0.00049863,120]
[354785053,1740691848164,-500.0,0.00049863,120]
[354785054,1740691848173,-500.0,0.00049863,120]
[354785055,1740691848183,-531.89,0.00049863,120]
[354785056,1740691848193,-500.0,0.00049863,120]
[354785057,1740691848202,-500.0,0.00049863,120]
[354785058,1740691848211,-500.0,0.00049863,120]
[354785059,1740691848221,-500.0,0.00049863,120]
[354785060,1740691848231,-500.0,0.00049863,120]
[354785061,1740691848241,-500.0,0.00049863,120]
[354785062,1740691848253,-500.0,0.00049863,120]
[354785063,1740691848263,-500.0,0.00049863,120]
[354785064,1740691848273,-500.0,0.00049863,120]
[354785065,1740691848283,-1515.8,0.00049863,14]
[354785066,1740691848292,-921.65,0.00049863,120]
[354785067,1740691848302,-500.0,0.00049863,120]
[354785068,1740691848312,-500.0,0.00049863,120]
[354785069,1740691848321,-1539.08309714,0.000499,120]
[354785070,1740691848332,-3000.0,0.000499,2]
[354785071,1740691848341,-515.97512731,0.00049973,10]
[354785072,1740691848350,-292.71697534,0.00049973,10]
[354785073,1740691848359,-500.0,0.00049973,2]
[354785074,1740691848369,-500.0,0.00049973,7]
[354785075,1740691848378,-500.0,0.00049973,10]
[354785076,1740691848388,-500.0,0.00049973,10]
[354785077,1740691848397,-512.16,0.0005,2]
[354785078,1740691848407,-976692.89728603,0.0005,2]
[354785079,1740691848416,-160892.58109004,0.0005,2]
[354785080,1740691848426,-330.98340124,0.0005,7]
[354785081,1740691848437,-6952.37177144,0.0005,120]
[354785082,1740691848448,-500.0,0.00050136,120]
[354785083,1740691848457,-500.0,0.00050136,120]
[354785084,1740691848466,-500.0,0.00050136,120]
[354785085,1740691848475,-500.0,0.00050136,120]
[354785086,1740691848485,-500.0,0.00050136,120]
[354785087,1740691848495,-500.0,0.00050136,120]
[354785088,1740691848504,-500.0,0.00050136,120]
[354785089,1740691848513,-1906.52,0.00050136,120]
[354785090,1740691848523,-500.0,0.00050136,120]
[354785091,1740691848532,-500.0,0.00050136,120]
[354785092,1740691848542,-500.0,0.00050136,120]
[354785093,1740691848551,-500.0,0.00050136,120]
[354785094,1740691848562,-500.0,0.00050136,120]
[354785095,1740691848571,-2397.0,0.00050136,6]
[354785096,1740691848581,-237.15,0.00050136,120]
[354785097,1740691848590,-526.16,0.00050136,120]
[354785098,1740691848599,-500.0,0.00050136,120]
[354785099,1740691848608,-500.0,0.00050136,120]
[354785100,1740691848618,-500.0,0.00050136,120]
[354785101,1740691848627,-500.0,0.00050136,120]
[354785102,1740691848636,-747.2,0.00050136,120]
[354785103,1740691848645,-1419.42,0.00050136,120]
[354785104,1740691848655,-1254.24,0.00050136,120]
[354785105,1740691848665,-500.0,0.00050136,120]
[354785106,1740691848675,-500.0,0.00050136,120]
[354785107,1740691848689,-500.0,0.00050136,120]
[354785108,1740691848698,-500.0,0.00050136,120]
[354785109,1740691848707,-500.0,0.00050136,120]
[354785110,1740691848718,-500.0,0.00050136,120]
[354785111,1740691848728,-500.0,0.00050136,120]
[354785112,1740691848738,-500.0,0.00050136,120]
[354785113,1740691848748,-960.32,0.00050136,120]
[354785114,1740691848758,-500.0,0.00050136,120]
[354785115,1740691848769,-500.0,0.00050136,120]
[354785116,1740691848779,-500.0,0.00050136,120]
[354785117,1740691848790,-1319.71,0.00050136,120]
[354785118,1740691848800,-500.0,0.00050136,120]
[354785119,1740691848809,-602.34,0.00050136,120]
[354785120,1740691848819,-8455.64,0.00050136,7]
[354785121,1740691848828,-500.0,0.00050136,120]
[354785122,1740691848838,-1464.48,0.00050136,120]
[354785123,1740691848848,-1661.68,0.00050136,120]
[354785124,1740691848857,-500.0,0.00050136,120]
[354785125,1740691848867,-531.89,0.00050136,120]
[354785126,1740691848877,-500.0,0.00050136,120]
[354785127,1740691848887,-500.0,0.00050136,120]
[354785128,1740691848896,-500.0,0.00050136,120]
[354785129,1740691848906,-433.13,0.00050136,120]
[354785130,1740691848916,-500.0,0.00050136,120]
[354785131,1740691848926,-500.0,0.00050136,120]
[354785132,1740691848940,-500.0,0.00050136,120]
[354785133,1740691848949,-500.0,0.00050136,120]
[354785134,1740691848959,-500.0,0.00050136,120]
[354785135,1740691848968,-1515.8,0.00050136,14]
[354785136,1740691848977,-921.65,0.00050136,120]
[354785137,1740691848987,-500.0,0.00050136,120]
[354785138,1740691848997,-210.97105153,0.0005041,120]
[354785139,1740691849006,-500.0,0.0005041,120]
[354785140,1740691849015,-500.0,0.0005041,120]
[354785141,1740691849024,-500.0,0.0005041,120]
[354785142,1740691849034,-500.0,0.0005041,120]
[354785143,1740691849044,-314.29,0.0005041,120]
[354785144,1740691849053,-1906.52,0.0005041,120]
[354785145,1740691849062,-500.0,0.0005041,120]
[354785146,1740691849075,-500.0,0.0005041,120]
[354785147,1740691849084,-500.0,0.0005041,120]
[354785148,1740691849093,-550.7,0.0005041,120]
[354785149,1740691849102,-500.0,0.0005041,120]
[354785150,1740691849111,-2397.0,0.0005041,6]
[354785151,1740691849121,-526.16,0.0005041,120]
[354785152,1740691849130,-500.0,0.0005041,120]
[354785153,1740691849139,-500.0,0.0005041,120]
[354785154,1740691849148,-500.0,0.0005041,120]
[354785155,1740691849158,-500.0,0.0005041,120]
[354785156,1740691849167,-747.2,0.0005041,120]
[354785157,1740691849179,-1419.42,0.0005041,120]
[354785158,1740691849190,-1254.24,0.0005041,120]
[354785159,1740691849199,-537.88,0.0005041,120]
[354785160,1740691849208,-500.0,0.0005041,120]
[354785161,1740691849218,-427.56,0.0005041,120]
[354785162,1740691849227,-500.0,0.0005041,120]
[354785163,1740691849236,-500.0,0.0005041,120]
[354785164,1740691849251,-500.0,0.0005041,120]
[354785165,1740691849260,-500.0,0.0005041,120]
[354785166,1740691849270,-960.32,0.0005041,120]
[354785167,1740691849280,-620.48,0.0005041,120]
[354785168,1740691849291,-500.0,0.0005041,120]
[354785169,1740691849300,-1319.71,0.0005041,120]
[354785170,1740691849308,-491.92,0.0005041,120]
[354785171,1740691849319,-602.34,0.0005041,120]
[354785172,1740691849328,-8455.64,0.0005041,7]
[354785173,1740691849337,-612.67,0.0005041,120]
[354785174,1740691849346,-1464.48,0.0005041,120]
[354785175,1740691849355,-1661.68,0.0005041,120]
[354785176,1740691849364,-500.0,0.0005041,120]
[354785177,1740691849374,-531.89,0.0005041,120]
[354785178,1740691849383,-500.0,0.0005041,120]
[354785179,1740691849392,-198.05,0.0005041,120]
[354785180,1740691849401,-500.0,0.0005041,120]
[354785181,1740691849412,-506.77,0.0005041,120]
[354785182,1740691849421,-500.0,0.0005041,120]
[354785183,1740691849435,-500.0,0.0005041,120]
[354785184,1740691849444,-500.0,0.0005041,120]
[354785185,1740691849453,-500.0,0.0005041,120]
[354785186,1740691849463,-1515.8,0.0005041,14]
[354785187,1740691849472,-921.65,0.0005041,120]
[354785188,1740691849482,-500.0,0.0005041,120]
[354785189,1740691849492,-160.396359,0.00050523,2]
[354785190,1740691849502,-500.0,0.00050684,120]
[354785191,1740691849512,-625.72,0.00050684,120]
[354785192,1740691849522,-622.57,0.00050684,120]
[354785193,1740691849531,-500.0,0.00050684,120]
[354785194,1740691849540,-1906.52,0.00050684,120]
[354785195,1740691849550,-500.0,0.00050684,120]
[354785196,1740691849559,-500.0,0.00050684,120]
[354785197,1740691849568,-500.0,0.00050684,120]
[354785198,1740691849578,-500.0,0.00050684,120]
[354785199,1740691849587,-2397.0,0.00050684,6]
[354785200,1740691849597,-526.16,0.00050684,120]
[354785201,1740691849606,-500.0,0.00050684,120]
[354785202,1740691849615,-500.0,0.00050684,120]
[354785203,1740691849624,-500.0,0.00050684,120]
[354785204,1740691849745,-500.0,0.00050684,120]
[354785205,1740691849755,-747.2,0.00050684,120]
[354785206,1740691849765,-1419.42,0.00050684,120]
[354785207,1740691849774,-1254.24,0.00050684,120]
[354785208,1740691849783,-500.0,0.00050684,120]
[354785209,1740691849793,-500.0,0.00050684,120]
[354785210,1740691849802,-496.7934629,0.00050684,120]
[354785211,1740691849812,-500.0,0.00050684,120]
[354785212,1740691849822,-500.0,0.00050684,120]
[354785213,1740691849831,-960.32,0.00050684,120]
[354785214,1740691849840,-436.6,0.00050684,120]
[354785215,1740691849850,-1319.71,0.00050684,120]
[354785216,1740691849859,-602.34,0.00050684,120]
[354785217,1740691849868,-8455.64,0.00050684,7]
[354785218,1740691849878,-1464.48,0.00050684,120]
[354785219,1740691849887,-1661.68,0.00050684,120]
[354785220,1740691849896,-500.0,0.00050684,120]
[354785221,1740691849906,-531.89,0.00050684,120]
[354785222,1740691849915,-500.0,0.00050684,120]
[354785223,1740691849924,-304.58,0.00050684,120]
[354785224,1740691849937,-500.0,0.00050684,120]
[354785225,1740691849947,-500.0,0.00050684,120]
[354785226,1740691849956,-500.0,0.00050684,120]
[354785227,1740691849965,-598.37,0.00050684,120]
[354785228,1740691849975,-1515.8,0.00050684,14]
[354785229,1740691849984,-921.65,0.00050684,120]
[354785230,1740691849993,-500.0,0.00050684,120]
[354785231,1740691850002,-500.0,0.00050958,120]
[354785232,1740691850011,-263.7,0.00050958,120]
[354785233,1740691850020,-1906.52,0.00050958,120]
[354785234,1740691850029,-500.0,0.00050958,120]
[354785235,1740691850038,-500.0,0.00050958,120]
[354785236,1740691850048,-500.0,0.00050958,120]
[354785237,1740691850057,-500.0,0.00050958,120]
[354785238,1740691850066,-2397.0,0.00050958,6]
[354785239,1740691850075,-526.16,0.00050958,120]
[354785240,1740691850085,-500.0,0.00050958,120]
[354785241,1740691850094,-500.0,0.00050958,120]
[354785242,1740691850103,-317.22,0.00050958,120]
[354785243,1740691850112,-500.0,0.00050958,120]
[354785244,1740691850121,-747.2,0.00050958,120]
[354785245,1740691850130,-1419.42,0.00050958,120]
[354785246,1740691850139,-1254.24,0.00050958,120]
[354785247,1740691850148,-500.0,0.00050958,120]
[354785248,1740691850157,-500.0,0.00050958,120]
[354785249,1740691850167,-500.0,0.00050958,120]
[354785250,1740691850176,-500.0,0.00050958,120]
[354785251,1740691850187,-960.32,0.00050958,120]
[354785252,1740691850196,-1319.71,0.00050958,120]
[354785253,1740691850204,-602.34,0.00050958,120]
[354785254,1740691850214,-8455.64,0.00050958,7]
[354785255,1740691850223,-1464.48,0.00050958,120]
[354785256,1740691850233,-1661.68,0.00050958,120]
[354785257,1740691850244,-500.0,0.00050958,120]
[354785258,1740691850254,-531.89,0.00050958,120]
[354785259,1740691850264,-500.0,0.00050958,120]
[354785260,1740691850273,-500.0,0.00050958,120]
[354785261,1740691850283,-500.0,0.00050958,120]
[354785262,1740691850294,-500.0,0.00050958,120]
[354785263,1740691850303,-1515.8,0.00050958,14]
[354785264,1740691850311,-921.65,0.00050958,120]
[354785265,1740691850320,-500.0,0.00050958,120]
[354785266,1740691850333,-397.0,0.00051176,2]
[354785267,1740691850343,-268.4,0.000512,30]
[354785268,1740691850353,-500.0,0.00051232,120]
[354785269,1740691850362,-1906.52,0.00051232,120]
[354785270,1740691850371,-292.92262602,0.00051232,120]
[354785271,1740691850381,-500.0,0.00051232,120]
[354785272,1740691850392,-500.0,0.00051232,120]
[354785273,1740691850401,-495.13,0.00051232,120]
[354785274,1740691850412,-2397.0,0.00051232,6]
[354785275,1740691850422,-526.16,0.00051232,120]
[354785276,1740691850432,-377.83,0.00051232,120]
[354785277,1740691850441,-500.0,0.00051232,120]
[354785278,1740691850451,-500.0,0.00051232,120]
[354785279,1740691850460,-747.2,0.00051232,120]
[354785280,1740691850470,-1419.42,0.00051232,120]
[354785281,1740691850479,-1254.24,0.00051232,120]
[354785282,1740691850488,-500.0,0.00051232,120]
[354785283,1740691850497,-500.0,0.00051232,120]
[354785284,1740691850507,-500.0,0.00051232,120]
[354785285,1740691850516,-500.0,0.00051232,120]
[354785286,1740691850526,-960.32,0.00051232,120]
[354785287,1740691850535,-1319.71,0.00051232,120]
[354785288,1740691850544,-602.34,0.00051232,120]
[354785289,1740691850553,-8455.64,0.00051232,7]
[354785290,1740691850563,-1464.48,0.00051232,120]
[354785291,1740691850572,-1661.68,0.00051232,120]
[354785292,1740691850581,-500.0,0.00051232,120]
[354785293,1740691850591,-531.89,0.00051232,120]
[354785294,1740691850600,-441.03,0.00051232,120]
[354785295,1740691850609,-500.0,0.00051232,120]
[354785296,1740691850618,-500.0,0.00051232,120]
[354785297,1740691850628,-500.0,0.00051232,120]
[354785298,1740691850639,-1515.8,0.00051232,14]
[354785299,1740691850649,-921.65,0.00051232,120]
[354785300,1740691850659,-500.0,0.00051232,120]
[354785301,1740691850668,-500.0,0.00051506,120]
[354785302,1740691850677,-1906.52,0.00051506,120]
[354785303,1740691850686,-500.0,0.00051506,120]
[354785304,1740691850697,-597.06000001,0.00051506,120]
[354785305,1740691850706,-2397.0,0.00051506,6]
[354785306,1740691850715,-526.16,0.00051506,120]
[354785307,1740691850724,-500.0,0.00051506,120]
[354785308,1740691850733,-500.0,0.00051506,120]
[354785309,1740691850742,-747.2,0.00051506,120]
[354785310,1740691850751,-1419.42,0.00051506,120]
[354785311,1740691850760,-1254.24,0.00051506,120]
[354785312,1740691850769,-500.0,0.00051506,120]
[354785313,1740691850778,-500.0,0.00051506,120]
[354785314,1740691850787,-500.0,0.00051506,120]
[354785315,1740691850795,-500.0,0.00051506,120]
[354785316,1740691850804,-960.32,0.00051506,120]
[354785317,1740691850814,-1319.71,0.00051506,120]
[354785318,1740691850823,-602.34,0.00051506,120]
[354785319,1740691850832,-8455.64,0.00051506,7]
[354785320,1740691850841,-1464.48,0.00051506,120]
[354785321,1740691850850,-1661.68,0.00051506,120]
[354785322,1740691850860,-500.0,0.00051506,120]
[354785323,1740691850868,-531.89,0.00051506,120]
[354785324,1740691850880,-500.0,0.00051506,120]
[354785325,1740691850891,-500.0,0.00051506,120]
[354785326,1740691850899,-541.75742198,0.00051506,120]
[354785327,1740691850911,-1515.8,0.00051506,14]
[354785328,1740691850920,-921.65,0.00051506,120]